bitfinex-derivatives/quotes_ETHF0:USTF0_20251103
["timestamp","ask_amount","ask_price","bid_price","bid_amount"]
[1762157829993,0.91083401,3714.2,3714.1,0.0034434]
[1762157830199,1.16551657,3714.2,3714.1,0.0034434]
[1762157830400,0.91083401,3714.2,3714.1,0.0034434]
[1762157830596,0.00313852,3714.2,3714.1,0.1375434]
[1762157830906,0.00313852,3714.2,3714.1,6.3585434]
[1762157831606,0.00313852,3714.2,3714.1,9.5635434]
[1762157835409,0.00313852,3714.2,3714.1,10.9745434]
[1762157836310,0.00313852,3714.2,3714.1,9.5635434]
[1762157837412,0.00313852,3714.2,3714.1,10.0482634]
[1762157837606,0.00313852,3714.2,3714.1,9.5635434]
[1762157839011,0.1431,3715.0,3714.9,0.1346]
[1762157839212,3.2078,3715.7,3715.4,0.1346]
[1762157839413,3.2078,3715.7,3714.9,8.232]
[1762157839711,0.1405,3715.0,3714.9,11.5744]
[1762157839908,0.1405,3715.0,3714.9,3.3424]
[1762157840108,0.1405,3715.0,3714.9,4.562]
[1762157840109,0.38135626,3715.0,3714.9,4.562]
[1762157840613,0.38135626,3715.0,3714.7,9.431]
[1762157840917,0.00205626,3715.0,3714.9,0.1346]
[1762157842610,0.00205626,3715.0,3714.9,3.3424]
[1762157843113,0.14255626,3715.0,3714.9,3.3424]
[1762157843314,0.14255626,3715.0,3714.9,0.1346]
[1762157843507,0.14255626,3715.0,3714.9,9.5676]
[1762157843706,0.38135626,3715.0,3714.9,9.433]
[1762157843906,0.1405,3714.5,3714.2,3.2078]
[1762157844113,0.1405,3714.5,3714.3,9.433]
[1762157844316,0.1405,3714.5,3714.4,9.433]
[1762157844513,0.1405,3714.5,3714.4,9.5676]
[1762157845819,0.14255626,3715.0,3714.9,0.1342]
[1762157846020,0.14255626,3715.0,3714.9,9.5692]
[1762157847218,0.00205626,3715.0,3714.9,9.5692]
[1762157847425,0.13585626,3715.0,3714.9,9.5692]
[1762157847625,0.37485626,3715.0,3714.9,9.435]
[1762157847922,0.00205626,3715.0,3714.9,9.5692]
[1762157848812,0.13585626,3715.0,3714.9,9.5692]
[1762157849216,0.37485626,3715.0,3714.9,9.435]
[1762157849813,0.239,3714.9,3714.8,9.43]
[1762157850018,0.239,3714.9,3714.8,9.5642]
[1762157850213,0.00205626,3715.0,3714.9,0.1342]
[1762157850418,0.00205626,3715.0,3714.9,3.342]
[1762157852125,0.37485626,3715.0,3714.9,12.6378]
[1762157852325,0.37485626,3715.0,3714.9,9.43]
[1762157852729,0.37485626,3715.0,3714.5,3.2078]
[1762157852931,0.37485626,3715.0,3714.6,5.142]
[1762157853429,0.37485626,3715.0,3714.5,3.2078]
[1762157853722,0.239,3714.7,3714.6,3.831]
[1762157853928,0.13585626,3715.0,3714.6,3.9652]
[1762157856330,0.67579795,3714.9,3714.6,0.1342]
[1762157856634,0.13585626,3715.0,3714.6,0.1342]
[1762157856826,0.67579786,3714.9,3714.6,0.1342]
[1762157857029,0.13585626,3715.0,3714.6,0.1342]
[1762157857328,0.13585626,3715.0,3714.5,10.2838]
[1762157857329,0.239,3714.7,3714.5,10.2838]
[1762157857732,0.239,3714.6,3714.5,3.2078]
[1762157859630,0.13585626,3715.0,3714.5,3.342]
[1762157859822,0.91832311,3714.9,3714.5,3.342]
[1762157860028,0.91832311,3714.8,3714.5,3.342]
[1762157860226,0.67617494,3714.7,3714.6,0.1342]
[1762157860427,0.239,3714.6,3714.5,3.2078]
[1762157862133,0.13585626,3715.0,3714.5,3.342]
[1762157862335,0.91877199,3714.9,3714.5,3.342]
[1762157862528,0.91877199,3714.8,3714.5,3.342]
[1762157862725,0.67650592,3714.7,3714.6,0.1352]
[1762157866829,0.13585626,3715.0,3714.6,0.1352]
[1762157867029,0.91883742,3714.9,3714.6,0.1352]
[1762157867228,0.13585626,3715.0,3714.5,3.2078]
[1762157867229,0.91883742,3714.8,3714.7,0.1352]
[1762157867835,0.67659136,3714.8,3714.7,0.1352]
[1762157869334,0.2314,3714.6,3714.5,3.2078]
[1762157869936,0.13585626,3715.0,3714.5,3.343]
[1762157870236,0.91834839,3714.9,3714.5,3.343]
[1762157870428,0.91834839,3714.8,3714.7,0.1352]
[1762157871040,0.13585626,3715.0,3714.9,0.1352]
[1762157871235,0.81212466,3715.0,3714.9,0.1352]
[1762157871442,1.05425167,3715.0,3714.9,0.1352]
[1762157872538,0.00205626,3715.0,3714.9,3.343]
[1762157873536,0.13585626,3715.0,3714.9,3.343]
[1762157874243,0.00205626,3715.0,3714.9,3.343]
[1762157877044,0.1431,3716.0,3715.0,0.0529]
[1762157877244,0.91816214,3715.9,3715.0,0.0529]
[1762157877545,0.91816214,3715.8,3714.9,3.2078]
[1762157877844,0.91816214,3715.7,3714.9,3.2078]
[1762157878044,0.1338,3715.5,3714.9,3.69241]
[1762157878446,0.1338,3715.5,3714.9,3.2078]
[1762157878846,0.1338,3715.5,3714.9,10.3858]
[1762157879248,0.1338,3715.5,3714.9,10.87041]
[1762157879643,0.2694,3715.4,3714.9,10.87041]
[1762157879843,0.1338,3715.5,3714.9,10.87041]
[1762157880043,0.67453646,3715.4,3714.9,10.87041]
[1762157880244,0.1338,3715.5,3714.9,10.87041]
[1762157880445,0.1338,3715.5,3715.4,0.1331]
[1762157880949,0.6346,3715.5,3714.9,10.3858]
[1762157881249,0.67436334,3715.4,3714.9,10.3858]
[1762157881448,0.1338,3715.0,3714.9,3.3409]
[1762157881652,0.3652,3715.0,3714.8,9.405]
[1762157881947,0.3652,3715.0,3713.6,1.21193]
[1762157881948,0.2314,3714.2,3714.1,3.2112434]
[1762157882245,0.2314,3714.2,3714.1,0.0034434]
[1762157882246,0.90556315,3714.2,3714.1,0.0034434]
[1762157882856,0.1338,3713.5,3713.1,3.2078]
[1762157884449,0.1338,3713.5,3713.4,0.1331]
[1762157884756,0.1338,3714.0,3713.4,0.1331]
[1762157885059,0.1338,3714.0,3713.6,3.2078]
[1762157885557,0.2314,3713.7,3713.6,3.2078]
[1762157885747,0.2314,3713.7,3713.2,11.1388]
[1762157886253,0.1338,3713.5,3713.2,3.2078]
[1762157886449,0.2314,3713.3,3713.2,3.2078]
[1762157889166,0.1338,3713.5,3713.2,3.3409]
[1762157889367,3.3416,3714.0,3713.4,0.1331]
[1762157889564,0.1338,3714.0,3713.8,0.1331]
[1762157890059,0.2314,3713.9,3713.2,3.2078]
[1762157890567,0.1338,3714.0,3713.1,0.00241218]
[1762157890568,0.1338,3714.0,3713.9,0.1331]
[1762157891064,0.1338,3714.0,3713.6,3.2078]
[1762157891462,0.1338,3714.0,3713.9,0.1331]
[1762157891765,0.3644,3714.0,3713.6,3.2078]
[1762157892661,3.2078,3714.4,3713.9,0.1322]
[1762157892858,3.2078,3714.4,3714.3,0.1322]
[1762157893560,3.4384,3714.4,3713.6,3.2078]
[1762157894067,0.2306,3713.7,3713.6,3.2078]
[1762157894961,0.2306,3713.2,3713.1,3.21021218]
[1762157896070,0.2306,3713.2,3713.1,0.00241218]
[1762157896265,3.4384,3713.2,3713.1,1.218e-05]
[1762157896571,3.69975196,3713.2,3713.1,1.218e-05]
[1762157896773,0.2306,3712.2,3712.1,3.2078]
[1762157897663,0.1338,3712.5,3712.1,3.2078]
[1762157898472,0.1338,3712.5,3712.4,0.1346]
[1762157898672,0.1338,3712.5,3712.1,3.2078]
[1762157899373,0.1338,3712.5,3712.4,0.1346]
[1762157900679,0.1338,3712.5,3712.1,3.2078]
[1762157900972,0.2306,3712.2,3712.1,3.2078]
[1762157903770,0.13679603,3712.5,3712.1,3.2078]
[1762157903771,0.13679603,3712.5,3712.1,3.3424]
[1762157904365,0.2306,3712.2,3712.1,3.2078]
[1762157904566,0.13679603,3712.5,3712.1,3.2078]
[1762157905577,0.2306,3712.2,3712.1,3.21081128]
[1762157905777,0.13679603,3712.5,3712.1,3.34541128]
[1762157905970,0.13679603,3712.5,3712.4,0.1346]
[1762157906473,0.00299603,3712.5,3712.4,0.1346]
[1762157907476,3.2078,3713.2,3713.1,0.1316]
[1762157907670,3.2078,3713.6,3713.1,0.1316]
[1762157907867,0.1338,3714.0,3713.4,0.1316]
[1762157907868,3.3416,3714.0,3713.4,0.1316]
[1762157909373,0.1338,3714.0,3713.4,0.1316]
[1762157909673,0.1381,3713.5,3713.4,0.1316]
[1762157911479,0.1338,3714.0,3713.9,0.1316]
[1762157913186,0.13671607,3714.0,3713.9,0.1316]
[1762157914385,0.13671607,3714.0,3713.7,3.2078]
[1762157914585,0.13671607,3714.0,3713.9,0.1316]
[1762157915885,0.36021607,3714.0,3713.7,3.2078]
[1762157916086,0.2235,3713.8,3713.7,3.2078]
[1762157916386,0.2235,3713.8,3713.2,3.2078]
[1762157917183,0.2235,3713.8,3713.2,3.69263]
[1762157919286,0.2235,3713.8,3713.2,3.2078]
[1762157919483,0.13671607,3714.0,3713.3,0.48482]
[1762157919783,0.13671607,3714.0,3713.9,0.1316]
[1762157919987,0.00291607,3714.0,3713.9,0.1316]
[1762157921186,0.14101607,3714.0,3713.9,0.1316]
[1762157922585,0.36451607,3714.0,3713.6,3.2078]
[1762157923879,0.14101607,3714.0,3713.6,3.2078]
[1762157924086,0.14101607,3714.0,3713.9,0.132]
[1762157924589,0.36901607,3714.0,3713.6,3.2078]
[1762157926190,0.36901607,3714.0,3713.9,0.1316]
[1762157926497,0.14101607,3714.0,3713.9,0.1316]
[1762157927985,0.36231607,3714.0,3713.6,3.2078]
[1762157930697,0.36231607,3714.0,3713.6,2.9385]
[1762157934885,0.36231607,3714.0,3712.4,1.21233]
[1762157934886,0.1404,3713.0,3712.7,3.2078]
[1762157935084,0.2213,3712.8,3712.7,3.2078]
[1762157935393,0.2213,3712.3,3712.2,3.2078]
[1762157936590,0.1404,3712.5,3712.2,3.3394]
[1762157936791,0.95246163,3712.4,3712.3,0.1316]
[1762157937292,0.2213,3712.3,3712.2,3.2078]
[1762157937692,0.2213,3712.3,3712.2,3.3394]
[1762157937893,0.1404,3712.5,3712.2,3.3394]
[1762157938094,0.95223005,3712.4,3712.2,3.3394]
[1762157938289,0.1404,3712.5,3712.2,3.3394]
[1762157940002,0.2213,3712.3,3711.7,3.2078]
[1762157940596,0.2213,3712.2,3711.7,3.2078]
[1762157941299,0.48769047,3712.2,3711.7,3.2078]
[1762157942497,0.2213,3712.2,3711.7,3.2078]
[1762157944602,0.1404,3712.5,3712.2,0.1316]
[1762157947402,0.1404,3712.5,3712.4,0.1316]
[1762157948099,3.2078,3713.1,3712.9,0.1316]
[1762157949208,0.1404,3712.5,3712.2,3.2078]
[1762157949410,0.1404,3712.5,3712.4,0.1316]
[1762157952012,0.22,3712.3,3712.1,0.00301128]
[1762157952206,0.1404,3712.5,3712.1,0.00301128]
[1762157952207,0.22,3712.2,3712.1,0.00301128]
[1762157953511,0.1404,3712.5,3712.1,0.13511128]
[1762157953913,0.1404,3712.5,3712.4,0.1321]
[1762157954714,3.2078,3712.7,3712.6,0.1321]
[1762157956010,3.2078,3713.1,3712.6,0.1321]
[1762157957610,3.2078,3713.1,3712.9,0.1321]
[1762157958014,0.1404,3713.5,3712.9,0.1321]
[1762157958615,0.1404,3713.5,3713.0,3.2078]
[1762157959016,0.22,3713.1,3713.0,3.2078]
[1762157960511,0.1404,3713.5,3713.0,3.3399]
[1762157960714,0.2660768,3713.4,3713.0,3.3399]
[1762157960910,0.1404,3713.5,3713.0,3.3399]
[1762157961214,0.26607569,3713.4,3713.0,3.3399]
[1762157961410,0.1404,3713.5,3713.0,3.3399]
[1762157961607,0.26616566,3713.4,3713.0,3.3399]
[1762157961811,0.1404,3713.5,3713.0,3.3399]
[1762157962012,0.26616475,3713.4,3713.0,3.3399]
[1762157962218,0.1404,3713.5,3713.0,3.3399]
[1762157962418,0.22,3713.1,3713.0,3.2078]
[1762157962820,0.1404,3713.5,3713.0,3.2078]
[1762157963014,0.22,3713.1,3713.0,3.2078]
[1762157963514,0.1404,3713.5,3713.0,3.2078]
[1762157963819,0.94926979,3713.4,3713.0,3.2078]
[1762157964019,0.26642776,3713.3,3713.0,3.2078]
[1762157964215,0.26642776,3713.2,3713.0,3.2078]
[1762157964410,0.1404,3713.5,3713.0,3.2078]
[1762157964614,0.22,3713.1,3713.0,3.2078]
[1762157966818,3.34881607,3714.0,3713.5,0.1321]
[1762157967024,0.131,3713.5,3713.0,3.2078]
[1762157967414,0.131,3713.5,3713.4,0.1321]
[1762157971418,3.34881607,3714.0,3713.4,0.1321]
[1762157971419,0.00291607,3714.0,3713.9,0.1321]
[1762157971733,0.00291607,3714.0,3713.9,3.3399]
[1762157971734,0.13391607,3714.0,3713.9,3.3399]
[1762157973630,0.36911607,3714.0,3713.9,3.2078]
[1762157973825,0.131,3713.5,3713.4,3.8247]
[1762157974227,0.00291607,3714.0,3713.9,0.1321]
[1762157975930,0.36911607,3714.0,3713.8,3.2078]
[1762157976233,0.13391607,3714.0,3713.8,3.2078]
[1762157976428,0.00291607,3714.0,3713.9,0.1321]
[1762157977434,0.2695,3714.5,3714.4,0.61677]
[1762157977733,0.4144,3715.0,3714.9,0.1321]
[1762157978432,0.41723474,3715.0,3714.9,0.13475497]
[1762157979534,0.65243474,3715.0,3714.9,0.00265497]
[1762157980931,0.3662,3714.5,3714.4,3.2078]
[1762157981127,0.131,3714.5,3714.0,3.2078]
[1762157982136,0.131,3714.5,3714.0,3.21001285]
[1762157983137,0.4005,3714.5,3714.0,3.21001285]
[1762157983834,0.2352,3714.1,3714.0,3.21001285]
[1762157985531,0.4005,3714.5,3714.0,3.21001285]
[1762157985736,0.68124042,3714.4,3714.0,3.21001285]
[1762157985934,0.4005,3714.5,3714.0,3.21001285]
[1762157986136,0.68124002,3714.4,3714.0,3.21001285]
[1762157986434,0.4005,3714.5,3714.0,3.21001285]
[1762157986631,0.2302,3714.1,3714.0,3.21001285]
[1762157987430,0.91157445,3714.1,3714.0,3.21001285]
[1762157987939,0.4005,3714.5,3714.0,3.21001285]
[1762157988138,0.94266585,3714.4,3714.0,3.21001285]
[1762157988439,0.68144675,3714.3,3714.0,3.21001285]
[1762157988632,0.2302,3714.1,3714.0,3.21001285]
[1762157989233,0.91180696,3714.1,3714.0,3.21001285]
[1762157992139,1.17329081,3714.1,3714.0,3.21001285]
[1762157996145,1.17329081,3714.1,3714.0,0.00221285]
[1762157996842,0.1342,3713.5,3713.1,3.2078]
[1762157997040,0.94309081,3713.4,3713.1,3.2078]
[1762157997239,0.68160696,3713.3,3713.1,3.2078]
[1762157997441,0.1342,3713.5,3713.1,3.2078]
[1762157997645,0.9452539,3713.4,3713.1,3.2078]
[1762157997941,0.68330382,3713.3,3713.1,3.21016237]
[1762157998143,0.1342,3713.5,3713.1,3.21016237]
[1762157998338,0.2302,3713.2,3713.1,3.21016237]
[1762157998541,0.91345758,3713.2,3713.1,3.21016237]
[1762157998743,1.17539332,3713.2,3713.1,3.21016237]
[1762157999248,1.17539332,3713.2,3713.1,0.00236237]
[1762158000950,1.17539332,3713.2,3711.7,3.2078]
[1762158000951,0.1342,3712.0,3711.7,3.2078]
[1762158001141,0.2302,3711.8,3711.7,3.2078]
[1762158001744,0.2302,3711.4,3711.3,3.2078]
[1762158002050,0.2302,3711.4,3711.3,3.21022365]
[1762158002250,0.2302,3711.4,3711.3,0.00242365]
[1762158005849,0.1342,3711.0,3710.5,3.2078]
[1762158006158,0.1342,3710.5,3710.0,3.2078]
[1762158006850,0.2302,3710.1,3710.0,3.21069622]
[1762158007057,3.438,3710.1,3710.0,0.00289622]
[1762158007951,0.2302,3710.1,3710.0,0.00289622]
[1762158008863,0.1342,3710.5,3710.0,0.00289622]
[1762158013153,0.1342,3710.5,3710.2,3.69302]
[1762158013354,0.1342,3710.5,3710.2,3.2078]
[1762158013658,0.2302,3710.3,3710.2,3.2078]
[1762158015661,0.2265,3710.1,3710.0,0.00289622]
[1762158017253,0.2265,3709.8,3709.7,0.02695672]
[1762158017456,3.4343,3709.8,3709.7,0.02695672]
[1762158017861,0.2265,3709.8,3709.7,0.02695672]
[1762158018159,0.2265,3709.8,3709.7,0.02933732]
[1762158019361,0.2265,3709.3,3709.2,3.2078]
[1762158019755,0.135,3709.0,3708.8,3.2078]
[1762158020063,0.135,3709.0,3708.8,3.6932]
[1762158020361,0.135,3709.5,3709.3,0.48534]
[1762158020558,0.13808662,3709.5,3709.4,3.2078]
[1762158020955,0.36458662,3709.5,3709.4,3.2078]
[1762158021156,0.13808662,3709.5,3709.4,3.2078]
[1762158021358,0.135,3710.0,3709.4,3.69312]
[1762158021552,0.135,3710.0,3709.6,0.4853]
[1762158021956,0.1342,3710.5,3709.9,0.48526]
[1762158022156,0.135,3710.0,3709.9,0.48526]
[1762158022460,0.13716419,3710.0,3709.9,0.48526]
[1762158022658,0.00216419,3710.0,3709.9,0.48526]
[1762158022860,0.135,3711.0,3710.2,0.48521]
[1762158023060,0.135,3711.0,3710.5,3.2078]
[1762158023563,0.135,3711.0,3710.5,3.69298]
[1762158023958,0.13785396,3711.0,3710.5,3.2078]
[1762158024162,0.13785396,3711.0,3710.7,0.48516]
[1762158024764,0.00285396,3711.0,3710.9,3.2078]
[1762158025359,0.135,3711.5,3710.9,3.2078]
[1762158025556,3.2078,3712.1,3711.4,3.2078]
[1762158025761,0.135,3712.5,3711.8,3.2078]
[1762158026163,0.94623263,3711.9,3711.8,3.2078]
[1762158026467,0.94868392,3711.9,3711.8,3.2104391]
[1762158026761,0.00247351,3711.9,3711.8,0.0026391]
[1762158026962,0.22897351,3711.9,3711.8,0.0026391]
[1762158027169,4.38383776,3711.9,3711.8,0.0026391]
[1762158027765,1.17603776,3711.9,3711.8,0.0026391]
[1762158029569,4.38383776,3711.9,3711.8,0.0026391]
[1762158029869,1.17603776,3711.9,3711.8,0.0026391]
[1762158030458,0.94953776,3711.9,3711.8,0.0026391]
[1762158031664,0.94987581,3711.9,3711.8,0.0026391]
[1762158032162,1.17467581,3711.9,3711.8,0.0026391]
[1762158032367,0.1318,3712.0,3711.8,0.0026391]
[1762158032973,0.2248,3711.9,3711.8,0.0026391]
[1762158033572,0.22721012,3711.9,3711.8,0.0026391]
[1762158036472,0.00241012,3711.9,3711.8,0.0026391]
[1762158038473,0.1318,3712.0,3711.9,0.485]
[1762158038672,0.1318,3712.0,3711.8,0.4876491]
[1762158039472,0.13389145,3712.0,3711.8,0.4876491]
[1762158039676,0.2248,3711.9,3711.8,0.0026391]
[1762158043279,0.13389145,3712.0,3711.8,0.0026391]
[1762158043878,0.2203,3711.9,3711.8,0.0026391]
[1762158044879,0.13389145,3712.0,3711.8,0.4876491]
[1762158045076,0.13389145,3712.0,3711.9,0.485]
[1762158046573,0.13389145,3712.0,3711.8,0.0026391]
[1762158046772,0.13389145,3712.0,3711.9,0.485]
[1762158048178,0.135,3712.5,3712.4,0.48494]
[1762158048482,0.135,3712.5,3712.4,13.20474]
[1762158051081,0.35807154,3712.5,3712.0,3.2078]
[1762158051280,0.2203,3712.1,3712.0,3.2078]
[1762158054782,0.13777154,3712.5,3712.0,3.2078]
[1762158054985,0.13777154,3712.5,3712.4,3.2078]
[1762158055486,0.35807154,3712.5,3712.4,3.2078]
[1762158055786,0.35807154,3712.5,3712.2,0.48496]
[1762158056487,0.2203,3712.3,3712.2,0.48496]
[1762158056885,0.13777154,3712.5,3712.3,0.48494]
[1762158057085,0.13777154,3712.5,3712.4,3.2078]
[1762158057787,0.13777154,3712.5,3712.4,3.69274]
[1762158058185,0.35807154,3712.5,3712.4,3.2078]
[1762158058381,0.35807154,3712.5,3712.4,3.69274]
[1762158058586,0.35807154,3712.5,3712.4,3.2078]
[1762158064192,1.28536417,3712.5,3712.4,3.2078]
[1762158064394,0.2203,3711.9,3711.8,0.0026391]
[1762158064792,1.1474211,3711.9,3711.8,0.0026391]
[1762158066600,0.1441,3712.0,3711.8,0.0026391]
[1762158067101,0.2203,3711.9,3711.8,0.0026391]
[1762158068496,1.14721983,3711.9,3711.8,3.91e-05]
[1762158069101,0.2203,3711.3,3711.2,3.2078]
[1762158069807,0.2203,3710.8,3710.7,3.2078]
[1762158070001,0.2203,3710.8,3710.7,3.2109247]
[1762158071606,0.2203,3710.8,3710.7,0.0031247]
[1762158071996,0.2206,3710.3,3710.2,3.2078]
[1762158072200,0.1319,3710.5,3708.5,1.2136]
[1762158072201,0.2206,3709.8,3709.7,3.2078]
[1762158072899,0.2206,3709.8,3708.6,7.75143]
[1762158072900,0.1319,3709.0,3708.9,3.2078]
[1762158073098,0.13539459,3709.0,3708.9,3.21089596]
[1762158073301,0.35599459,3709.0,3708.9,3.21089596]
[1762158073502,0.35599459,3709.0,3708.9,0.00309596]
[1762158074103,0.35599459,3709.0,3708.4,3.2078]
[1762158074104,0.3525,3708.5,3708.4,3.2078]
[1762158074607,0.3525,3708.5,3708.0,3.2078]
[1762158075206,0.3525,3708.5,3708.0,3.21073848]
[1762158075900,0.3525,3708.5,3708.0,3.69624848]
[1762158076101,0.3525,3708.5,3708.0,3.21073848]
[1762158076703,0.3525,3708.5,3708.0,3.69624848]
[1762158076903,0.3525,3708.5,3708.1,0.48549]
[1762158077608,0.3525,3708.5,3708.0,3.69624848]
[1762158078007,0.3525,3708.5,3708.1,0.48549]
[1762158078403,0.13539459,3709.0,3708.8,0.4854]
[1762158078608,0.13539459,3709.0,3708.9,3.2078]
[1762158078807,0.00349459,3709.0,3708.9,3.2078]
[1762158079009,0.1319,3709.5,3708.9,3.2078]
[1762158079210,0.1319,3709.5,3709.4,3.2078]
[1762158079712,3.2078,3710.3,3709.6,0.48529]
[1762158080010,0.13531815,3710.0,3709.8,0.48527]
[1762158080707,0.13531815,3710.0,3709.8,3.69307]
[1762158080908,0.13531815,3710.0,3709.8,3.2078]
[1762158081307,0.2206,3709.9,3709.8,3.2078]
[1762158081611,0.2206,3709.3,3709.2,3.2078]
[1762158083714,0.1319,3709.5,3709.2,3.2078]
[1762158085110,0.1319,3709.5,3709.3,0.48534]
[1762158086607,0.1319,3709.5,3709.2,3.2078]
[1762158086813,0.1319,3709.5,3709.0,0.48538]
[1762158086814,0.2342,3709.1,3709.0,0.48538]
[1762158087113,0.1319,3709.5,3709.0,0.48538]
[1762158087612,0.1319,3709.5,3709.3,0.48533]
[1762158087912,0.1319,3709.5,3709.3,0.48534]
[1762158088715,0.1319,3709.5,3709.2,0.48535]
[1762158089111,0.1319,3709.5,3709.3,0.48534]
[1762158089808,0.1319,3709.5,3709.1,3.2078]
[1762158090008,0.1319,3709.5,3709.3,0.48534]
[1762158090616,0.1319,3709.5,3709.2,0.48535]
[1762158091222,0.1319,3709.5,3709.1,3.2078]
[1762158091418,0.2342,3709.2,3709.1,3.2078]
[1762158092417,0.1319,3709.5,3709.1,3.2078]
[1762158092606,0.1319,3709.5,3709.3,0.48533]
[1762158093013,0.1362,3709.0,3708.8,1.411]
[1762158093311,0.1362,3709.0,3708.8,1.89641]
[1762158093613,0.1362,3709.0,3708.8,1.411]
[1762158094608,0.1362,3709.0,3708.8,1.8964]
[1762158096413,0.1362,3709.0,3708.8,0.4854]
[1762158097512,0.1319,3709.5,3709.1,0.48536]
[1762158097716,0.1319,3709.5,3709.1,0.48537]
[1762158098020,0.1319,3709.5,3708.7,4.42134]
[1762158098416,0.27790857,3709.4,3709.3,3.69314]
[1762158098925,0.27790857,3709.4,3709.3,3.2078]
[1762158099123,0.51210857,3709.4,3709.3,3.2078]
[1762158099328,0.2342,3708.6,3708.5,3.2078]
[1762158099817,0.1362,3709.0,3708.5,3.2078]
[1762158100024,0.27805954,3708.9,3708.5,3.2078]
[1762158100222,0.27805954,3708.8,3708.5,3.2078]
[1762158100424,0.27805954,3708.7,3708.5,3.2078]
[1762158100730,0.27805954,3708.6,3708.5,3.2078]
[1762158100927,0.27805954,3708.6,3708.5,3.69324]
[1762158101119,0.27805954,3708.9,3708.7,0.48542]
[1762158101427,0.27805954,3708.9,3708.6,0.48543]
[1762158102220,0.2342,3708.7,3708.5,3.2078]
[1762158102519,0.49585954,3708.6,3708.5,3.2078]
[1762158102925,0.27805954,3708.6,3708.5,3.2078]
[1762158103122,0.27805954,3708.9,3708.5,3.2078]
[1762158103425,0.94587042,3708.8,3708.5,3.2078]
[1762158103622,0.27805954,3708.7,3708.5,3.2078]
[1762158103823,0.27805954,3708.6,3708.5,3.2078]
[1762158105026,0.49585954,3708.6,3708.1,3.2078]
[1762158105226,0.2178,3708.2,3708.1,3.2078]
[1762158105624,0.2178,3708.2,3708.0,0.00293848]
[1762158105625,0.2178,3708.1,3708.0,0.00293848]
[1762158105829,1.16369069,3708.1,3708.0,0.00293848]
[1762158106025,0.1404,3707.5,3707.1,0.48562]
[1762158106226,0.1404,3707.5,3707.0,3.2078]
[1762158106724,0.1404,3707.5,3707.1,0.48562]
[1762158106918,0.1404,3707.5,3707.3,0.4856]
[1762158107125,0.1404,3707.5,3707.4,3.2078]
[1762158109432,0.3582,3707.5,3707.4,3.2078]
[1762158109927,0.2178,3707.4,3707.3,0.0032376]
[1762158110134,0.22023876,3707.4,3707.3,0.0032376]
[1762158110326,0.00243876,3707.4,3707.3,0.0032376]
[1762158110732,0.22023876,3707.4,3707.3,0.0032376]
[1762158111631,0.00243876,3707.4,3707.3,0.0032376]
[1762158112227,0.22023876,3707.4,3707.3,0.0032376]
[1762158113530,0.1404,3707.0,3706.5,3.2078]
[1762158113736,0.2178,3706.6,3706.5,3.2078]
[1762158113927,0.1404,3707.0,3706.5,3.2078]
[1762158114528,0.1404,3707.0,3706.5,3.2098266]
[1762158114725,0.2178,3706.6,3706.5,3.2098266]
[1762158115126,0.1404,3707.0,3706.5,3.2098266]
[1762158115429,0.26692605,3706.9,3706.5,3.2098266]
[1762158115731,0.2178,3706.6,3706.5,0.0020266]
[1762158117022,0.1404,3707.0,3706.5,0.0020266]
[1762158117226,0.1404,3707.0,3706.5,0.4877266]
[1762158117432,0.1404,3707.0,3706.5,0.0020266]
[1762158117632,0.2178,3706.6,3706.5,0.0020266]
[1762158117828,0.05192516,3707.0,3706.8,0.48567]
[1762158118033,0.05192516,3707.0,3706.8,3.69346]
[1762158118232,0.05192516,3707.0,3706.8,3.2078]
[1762158118529,0.05192516,3707.0,3706.8,3.69346]
[1762158120537,0.00243876,3707.4,3707.2,0.48561]
[1762158120731,0.00243876,3707.4,3707.2,3.69341]
[1762158121030,0.00243876,3707.4,3707.2,13.21541]
[1762158121735,0.00243876,3707.4,3707.2,3.2078]
[1762158122927,0.1404,3707.0,3706.8,0.48566]
[1762158123332,0.1404,3707.0,3706.7,10.4558]
[1762158123736,0.1404,3707.0,3706.7,3.2078]
[1762158126038,0.1404,3707.0,3706.5,0.0020266]
[1762158126335,0.2178,3706.6,3706.5,0.0020266]
[1762158128041,3.2078,3706.7,3705.2,1.411]
[1762158128042,0.3582,3706.0,3705.5,3.2078]
[1762158129039,0.3582,3706.0,3705.5,3.21002774]
[1762158129240,0.1404,3706.0,3705.5,3.21002774]
[1762158129635,0.1404,3706.0,3705.5,0.00222774]
[1762158129841,0.2178,3705.2,3705.1,3.2078]
[1762158130040,0.2178,3705.2,3702.6,4.841251]
[1762158130041,0.1404,3704.5,3704.3,3.2078]
[1762158130347,0.1404,3704.5,3703.9,3.2078]
[1762158130848,0.2178,3703.6,3703.5,3.2078]
[1762158131045,0.1404,3704.0,3703.5,3.21077793]
[1762158131250,0.14385556,3704.5,3703.9,3.2078]
[1762158132351,0.1327,3703.8,3703.5,3.21077793]
[1762158132848,0.1327,3703.8,3703.5,0.00297793]
[1762158134146,0.1327,3703.8,3703.6,3.2078]
[1762158134547,0.14385556,3704.5,3703.6,3.2078]
[1762158136351,0.14385556,3704.5,3704.0,3.2078]
[1762158150251,0.00345556,3704.5,3704.0,3.2078]
[1762158150454,3.2078,3705.2,3704.0,3.2078]
[1762158150756,0.1404,3705.5,3705.1,3.2078]
[1762158151552,0.14326846,3705.5,3704.8,4.205]
[1762158151750,0.1435,3705.0,3704.7,3.2078]
[1762158151954,0.1435,3705.0,3704.3,6.4788]
[1762158152151,0.1435,3704.5,3704.3,3.2078]
[1762158155552,0.2382,3704.4,3704.3,3.2078]
[1762158156357,0.1435,3704.0,3703.9,3.2078]
[1762158158058,0.1435,3704.5,3703.9,3.2078]
[1762158158247,0.92677937,3704.4,3703.9,3.2078]
[1762158158451,0.67094344,3704.3,3703.9,3.2078]
[1762158158651,0.1435,3704.5,3703.9,3.2078]
[1762158158852,0.9275123,3704.4,3703.9,3.2078]